[Event "8th RTU Open 2018"]
[Site "Riga"]
[Date "2018.08.09"]
[Round "6"]
[White "Martin, Julian"]
[Black "Pogan, Nikolas"]
[Result "1-0"]
[ECO "B12"]
[WhiteElo "2392"]
[BlackElo "2255"]
[Annotator "NA"]
[PlyCount "109"]
[EventDate "2018.08.06"]
[EventType "swiss"]
[EventCountry "LAT"]
[SourceTitle "playchess.com"]
[Source "ChessBase"]
[SourceQuality "1"]
[TimeControl "5400+30"]

1. e4 {[%emt 0:00:00]} c6 {[%emt 0:00:00]} 2. d4 {[%emt 0:00:00]} d5 {[%emt 0:00:00]} 3. e5 {[%emt 0:00:00]} Bf5 {[%emt 0:00:00]} 4. Nf3 {[%emt 0:00:00]} e6 {[%emt 0:00:00]} 5. Be2 {[%emt 0:00:00]} Ne7 {[%emt 0:00:09]} 6. O-O {[%emt 0:00:02]} Nd7 {[%emt 0:00:04]} 7. Nbd2 {[%emt 0:00:07]} Nc8 {[%emt 0:00:19]} 8. a4 {[%emt 0:01:42]} Be7 {[%emt 0:00:20]} 9. Nb3 {[%emt 0:03:45]} O-O {[%emt 0:01:06]} 10. a5 {[%emt 0:02:13]} a6 {[%emt 0:00:03]} 11. c4 {[%emt 0:01:44]} dxc4 {[%emt 0:00:34]} 12. Nbd2 {[%emt 0:00:53]} Na7 {[%emt 0:00:40]} 13. Nxc4 {[%emt 0:01:22]} Nb5 {[%emt 0:00:25]} 14. Be3 {[%emt 0:03:09]} Nc7 {[%emt 0:09:50]} 15. Bd3 {[%emt 0:00:38]} Bg6 {[%emt 0:07:56]} 16. Bxg6 {[%emt 0:00:58]} hxg6 {[%emt 0:00:19]} 17. Qd2 {[%emt 0:00:28]} Nd5 {[%emt 0:00:48]} 18. Bg5 {[%emt 0:03:12]} f6 {[%emt 0:06:11]} 19. exf6 {[%emt 0:02:38]} gxf6 {[%emt 0:00:03]} 20. Bh6 {[%emt 0:05:56]} Re8 {[%emt 0:01:49]} 21. Qd3 {[%emt 0:05:06]} Kh7 {[%emt 0:03:20]} 22. Bd2 {[%emt 0:01:05]} Rh8 {[%emt 0:02:41]} 23. g3 {[%emt 0:11:31]} Kg7 {[%emt 0:00:43]} 24. Rae1 {[%emt 0:00:43]} Nf8 {[%emt 0:05:59]} 25. h4 {[%emt 0:00:28]} Qd7 {[%emt 0:02:22]} 26. Rb1 {[%emt 0:05:06]} Rd8 {[%emt 0:04:09]} 27. b4 {[%emt 0:00:50]} Qe8 {[%emt 0:01:31]} 28. Qe4 {[%emt 0:01:57]} Rd7 {[%emt 0:03:30]} 29. Kg2 {[%emt 0:01:48]} Bd8 {[%emt 0:00:57]} 30. Ne1 {[%emt 0:00:50]} g5 {[%emt 0:16:04]} 31. hxg5 {[%emt 0:09:33]} Qh5 {[%emt 0:01:33]} 32. Nd3 {[%emt 0:00:13]} Qh3+ {[%emt 0:12:03]} 33. Kf3 {[%emt 0:00:10]} Ng6 {[%emt 0:01:32]} 34. Ke2 {[%emt 0:04:11]} Qf5 {[%emt 0:11:49]} 35. Qxf5 {[%emt 0:03:56]} exf5 {[%emt 0:00:03]} 36. gxf6+ {[%emt 0:00:27]} Bxf6 {[%emt 0:01:35]} 37. Nce5 {[%emt 0:03:31]} Re8 {[%emt 0:00:45]} 38. f4 {[%emt 0:00:58]} Nc7 {[%emt 0:00:03]} 39. Be3 {[%emt 0:00:36]} Rd5 {[%emt 0:01:50]} 40. Nxg6 {[%emt 0:02:03]} Kxg6 {[%emt 0:00:06]} 41. Ne5+ {[%emt 0:00:14]} Kg7 {[%emt 0:00:39]} 42. Rbd1 {[%emt 0:00:51]} Rb5 {[%emt 0:00:26]} 43. Rb1 {[%emt 0:02:18]} Nd5 {[%emt 0:02:23]} 44. Bd2 {[%emt 0:00:18]} Be7 {[%emt 0:01:14]} 45. Rh1 {[%emt 0:02:15]} Nxb4 {[%emt 0:03:56]} 46. Rh5 {[%emt 0:00:48]} Nc2 {[%emt 0:00:33]} 47. Rbh1 {[%emt 0:00:25]} Rg8 {[%emt 0:00:23]} 48. Bc3 {[%emt 0:02:01]} Kf8 {[%emt 0:00:29]} 49. Rxf5+ {[%emt 0:03:07]} Ke8 {[%emt 0:00:01]} 50. Rh7 {[%emt 0:00:11]} Nb4 {[%emt 0:00:19]} 51. Bxb4 {[%emt 0:01:05]} Bxb4 {[%emt 0:00:00]} 52. Rff7 {[%emt 0:00:57]} Bxa5 {[%emt 0:00:20]} 53. Rxb7 {[%emt 0:00:21]} Rxb7 {[%emt 0:00:20]} 54. Rxb7 {[%emt 0:00:06]} Rxg3 {[%emt 0:00:14]} 55. Rb8+ {[%emt 0:00:06]} 1-0

[Event "8th RTU Open 2018"]
[Site "Riga"]
[Date "2018.08.09"]
[Round "6"]
[White "Krupenski, Juri"]
[Black "Kollars, Dmitrij"]
[Result "1-0"]
[ECO "A40"]
[WhiteElo "2390"]
[BlackElo "2549"]
[Annotator "ChessBase"]
[PlyCount "93"]
[EventDate "2018.08.06"]
[EventType "swiss"]
[EventCountry "LAT"]
[SourceTitle "playchess.com"]
[Source "ChessBase"]
[SourceQuality "1"]
[TimeControl "5400+30"]

1. d4 {[%emt 0:00:00]} Nf6 {[%emt 0:05:11]} 2. c4 {[%emt 0:00:00]} e6 {[%emt 0:00:14]} 3. g3 {[%emt 0:00:09]} Bb4+ {[%emt 0:00:28]} 4. Bd2 {[%emt 0:00:22]} Bxd2+ {[%emt 0:00:36]} 5. Nxd2 {[%emt 0:00:47]} O-O {[%emt 0:00:25]} 6. Bg2 {[%emt 0:00:07]} d6 {[%emt 0:00:21]} 7. e3 {[%emt 0:00:34]} e5 {[%emt 0:00:56]} 8. Ne2 {[%emt 0:00:11]} Nc6 {[%emt 0:02:26]} 9. d5 Nb8 {[%emt 0:02:20]} 10. O-O {[%emt 0:09:15]} a5 {[%emt 0:00:54]} 11. Nc3 {[%emt 0:00:17]} Na6 {[%emt 0:01:32]} 12. Nb3 {[%emt 0:10:25]} b6 {[%emt 0:01:52]} 13. Nd2 {[%emt 0:03:57]} Bd7 {[%emt 0:09:08]} 14. a3 {[%emt 0:01:57]} Qe7 {[%emt 0:01:02]} 15. Qc2 {[%emt 0:00:50]} Rfb8 {[%emt 0:05:04]} 16. Nb5 {[%emt 0:17:17]} Qe8 {[%emt 0:05:00]} 17. Rfc1 {[%emt 0:02:54]} Bxb5 {[%emt 0:11:30]} 18. cxb5 {[%emt 0:00:33]} Qxb5 {[%emt 0:00:09]} 19. Bf1 {[%emt 0:12:19]} Qd7 {[%emt 0:07:30]} 20. Bxa6 {[%emt 0:00:24]} Rxa6 {[%emt 0:00:03]} 21. Qxc7 {[%emt 0:00:09]} Qxc7 {[%emt 0:00:52]} 22. Rxc7 {[%emt 0:00:06]} Nxd5 {[%emt 0:00:09]} 23. Rc6 {[%emt 0:00:17]} Rd8 {[%emt 0:02:51]} 24. Nc4 {[%emt 0:01:20]} Ne7 {[%emt 0:03:10]} 25. Rxd6 {[%emt 0:01:03]} Rxd6 {[%emt 0:00:09]} 26. Nxd6 {[%emt 0:00:04]} Kf8 {[%emt 0:03:13]} 27. Rd1 {[%emt 0:01:56]} f6 {[%emt 0:02:24]} 28. Nb5 {[%emt 0:01:35]} Ra8 {[%emt 0:00:43]} 29. Rd7 {[%emt 0:01:27]} Rb8 {[%emt 0:04:42]} 30. e4 {[%emt 0:03:55]} Nc6 {[%emt 0:03:45]} 31. Rc7 {[%emt 0:05:53]} Nd8 {[%emt 0:01:13]} 32. Nd6 {[%emt 0:04:03]} Ne6 {[%emt 0:01:18]} 33. Rf7+ {[%emt 0:00:17]} Kg8 {[%emt 0:00:04]} 34. Re7 {[%emt 0:00:06]} Nd4 {[%emt 0:00:21]} 35. Kg2 {[%emt 0:00:54]} a4 {[%emt 0:03:07]} 36. Rd7 {[%emt 0:08:54]} b5 {[%emt 0:02:38]} 37. f4 {[%emt 0:00:19]} exf4 {[%emt 0:06:45]} 38. gxf4 {[%emt 0:00:06]} Ne6 {[%emt 0:00:53]} 39. Kg3 {[%emt 0:02:13]} h5 {[%emt 0:03:15]} 40. Re7 {[%emt 0:01:54]} Nc5 {[%emt 0:01:44]} 41. Kh4 {[%emt 0:02:22]} Nd3 {[%emt 0:02:13]} 42. Nf5 {[%emt 0:03:29]} Nxf4 {[%emt 0:01:10]} 43. Rxg7+ {[%emt 0:00:06]} Kf8 {[%emt 0:02:38]} 44. Rh7 {[%emt 0:00:47]} Rb6 {[%emt 0:01:09]} 45. Ra7 {[%emt 0:02:43]} Re6 {[%emt 0:02:57]} 46. Ra8+ {[%emt 0:00:44]} Kf7 {[%emt 0:00:36]} 47. Rb8 {[%emt 0:00:38] Kg7} 1-0

[Event "8th RTU Open 2018"]
[Site "Riga"]
[Date "2018.08.09"]
[Round "6"]
[White "Gorbatov, Alexej"]
[Black "Saulespurens, Valdis"]
[Result "1-0"]
[ECO "B44"]
[WhiteElo "2389"]
[BlackElo "2254"]
[Annotator "NA"]
[PlyCount "99"]
[EventDate "2018.08.06"]
[EventType "swiss"]
[EventCountry "LAT"]
[SourceTitle "playchess.com"]
[Source "ChessBase"]
[SourceQuality "1"]
[TimeControl "5400+30"]

1. e4 {[%emt 0:00:00]} c5 {[%emt 0:04:48]} 2. Nf3 {[%emt 0:00:00]} e6 {[%emt 0:00:09]} 3. d4 {[%emt 0:00:00]} cxd4 {[%emt 0:00:04]} 4. Nxd4 {[%emt 0:00:00]} Nc6 {[%emt 0:00:21]} 5. Nb5 {[%emt 0:00:09]} d6 {[%emt 0:02:25]} 6. c4 {[%emt 0:00:10]} Nf6 {[%emt 0:00:47]} 7. N1c3 {[%emt 0:00:07]} a6 {[%emt 0:03:00]} 8. Na3 {[%emt 0:00:33]} Be7 {[%emt 0:11:51]} 9. Be2 {[%emt 0:00:17]} d5 {[%emt 0:06:44]} 10. exd5 {[%emt 0:02:46]} exd5 {[%emt 0:01:45]} 11. cxd5 {[%emt 0:00:40]} Nb4 {[%emt 0:01:02]} 12. Bf3 {[%emt 0:00:39]} Bf5 {[%emt 0:03:15]} 13. O-O {[%emt 0:00:23]} O-O {[%emt 0:02:46]} 14. Be3 {[%emt 0:03:33]} Nd3 {[%emt 0:04:38]} 15. Nc4 {[%emt 0:03:06]} Qc7 {[%emt 0:13:15]} 16. b3 {[%emt 0:05:08]} Rac8 {[%emt 0:08:44]} 17. Bb6 {[%emt 0:07:26]} Qb8 {[%emt 0:13:02]} 18. a4 {[%emt 0:09:31]} Rfe8 {[%emt 0:08:43]} 19. a5 {[%emt 0:01:38]} Bb4 {[%emt 0:03:38]} 20. Na2 {[%emt 0:05:02]} Bd6 {[%emt 0:01:49]} 21. g3 {[%emt 0:02:27]} h5 {[%emt 0:00:38]} 22. Nc1 {[%emt 0:05:51]} Ne5 {[%emt 0:01:15]} 23. Nxd6 {[%emt 0:02:21]} Qxd6 {[%emt 0:00:18]} 24. Bg2 {[%emt 0:00:01]} Bg4 {[%emt 0:01:19]} 25. f3 {[%emt 0:01:00]} Bf5 {[%emt 0:00:19]} 26. Ra2 {[%emt 0:04:46]} Ned7 {[%emt 0:00:18]} 27. Bf2 {[%emt 0:00:25]} Rc3 {[%emt 0:02:06]} 28. Rd2 {[%emt 0:06:50]} Qa3 {[%emt 0:02:20]} 29. Ne2 {[%emt 0:00:23]} Rxb3 {[%emt 0:00:22]} 30. Qa1 {[%emt 0:00:26]} Bd3 {[%emt 0:01:14]} 31. Qd1 {[%emt 0:05:46]} Rxe2 {[%emt 0:01:17]} 32. Rxe2 {[%emt 0:00:03]} Bxe2 {[%emt 0:00:42]} 33. Qxe2 {[%emt 0:00:02]} Qxa5 {[%emt 0:00:22]} 34. Rd1 {[%emt 0:01:14]} Ra3 {[%emt 0:00:47]} 35. Bd4 {[%emt 0:00:40]} Nxd5 {[%emt 0:00:37]} 36. Qe8+ {[%emt 0:00:41]} Nf8 {[%emt 0:00:06]} 37. h4 {[%emt 0:04:56]} Nc3 {[%emt 0:00:38]} 38. Re1 {[%emt 0:01:08]} Ra1 {[%emt 0:00:27]} 39. Kh2 {[%emt 0:00:50]} Ra3 {[%emt 0:00:53]} 40. Re5 {[%emt 0:01:52]} Qa4 {[%emt 0:00:29]} 41. Bc5 {[%emt 0:00:30]} Qxe8 {[%emt 0:00:07]} 42. Rxe8 {[%emt 0:00:06]} Ra2 {[%emt 0:00:15]} 43. Rxf8+ {[%emt 0:00:20]} Kh7 {[%emt 0:00:01]} 44. Rxf7 {[%emt 0:00:08]} b5 {[%emt 0:00:15]} 45. Bd4 {[%emt 0:00:33]} Nd5 {[%emt 0:00:16]} 46. Rxg7+ {[%emt 0:00:14]} Kh6 {[%emt 0:00:02]} 47. Rd7 {[%emt 0:00:39]} Nb4 {[%emt 0:00:08]} 48. Kh3 {[%emt 0:04:02]} Nc2 {[%emt 0:00:07]} 49. f4 {[%emt 0:00:46]} Nxd4 {[%emt 0:00:03]} 50. Be4 {[%emt 0:00:18]} 1-0

[Event "8th RTU Open 2018"]
[Site "Riga"]
[Date "2018.08.09"]
[Round "6"]
[White "Krivonosov, Oleg"]
[Black "Makoveev, Ilya"]
[Result "1-0"]
[ECO "A05"]
[WhiteElo "2386"]
[BlackElo "2249"]
[Annotator "NA"]
[PlyCount "90"]
[EventDate "2018.08.06"]
[EventType "swiss"]
[EventCountry "LAT"]
[SourceTitle "playchess.com"]
[Source "ChessBase"]
[SourceQuality "1"]
[TimeControl "5400+30"]

1. Nf3 {[%emt 0:00:00]} Nf6 {[%emt 0:00:00]} 2. c4 {[%emt 0:00:00]} g6 {[%emt 0:00:13]} 3. Nc3 {[%emt 0:00:00]} d5 {[%emt 0:00:13]} 4. cxd5 Nxd5 {[%emt 0:00:14]} 5. e4 {[%emt 0:00:17]} Nxc3 {[%emt 0:00:29]} 6. dxc3 {[%emt 0:00:13]} Qxd1+ {[%emt 0:00:35]} 7. Kxd1 {[%emt 0:00:20]} Nd7 {[%emt 0:01:03]} 8. Bc4 {[%emt 0:10:07]} e5 {[%emt 0:09:21]} 9. Be3 {[%emt 0:12:20]} f6 {[%emt 0:04:05]} 10. Ke2 {[%emt 0:06:52]} Bc5 {[%emt 0:01:35]} 11. Rhd1 {[%emt 0:03:56]} Bxe3 {[%emt 0:00:42]} 12. Kxe3 {[%emt 0:00:13]} Ke7 {[%emt 0:05:48]} 13. Ne1 {[%emt 0:09:00]} Nc5 {[%emt 0:07:22]} 14. Nd3 {[%emt 0:03:45]} Nxd3 {[%emt 0:01:38]} 15. Rxd3 {[%emt 0:00:40]} Bd7 {[%emt 0:01:25]} 16. Rad1 {[%emt 0:02:41]} Rad8 {[%emt 0:01:01]} 17. h4 {[%emt 0:02:39]} Bg4 {[%emt 0:18:28]} 18. f3 {[%emt 0:02:16]} Rxd3+ {[%emt 0:02:33]} 19. Rxd3 {[%emt 0:00:21]} Be6 {[%emt 0:00:32]} 20. Bxe6 {[%emt 0:00:59]} Kxe6 {[%emt 0:00:03]} 21. c4 {[%emt 0:01:30]} b6 {[%emt 0:10:17]} 22. b4 {[%emt 0:04:29]} a6 {[%emt 0:01:54]} 23. g3 {[%emt 0:01:11]} h5 {[%emt 0:04:57]} 24. f4 {[%emt 0:05:09]} Ra8 {[%emt 0:11:27]} 25. fxe5 {[%emt 0:04:27]} fxe5 {[%emt 0:00:12]} 26. Ra3 {[%emt 0:04:17]} a5 {[%emt 0:02:32]} 27. Ke2 {[%emt 0:00:35]} Ke7 {[%emt 0:00:31]} 28. c5 {[%emt 0:02:33]} Kd7 {[%emt 0:04:26]} 29. cxb6 {[%emt 0:01:07]} cxb6 {[%emt 0:00:04]} 30. bxa5 {[%emt 0:00:37]} bxa5 {[%emt 0:01:25]} 31. Rb3 {[%emt 0:02:35]} Kc6 {[%emt 0:00:43]} 32. a4 {[%emt 0:00:13]} Kc5 {[%emt 0:02:14]} 33. Ke3 {[%emt 0:02:05]} Ra6 {[%emt 0:00:47]} 34. Rb5+ {[%emt 0:00:06]} Kc4 {[%emt 0:01:24]} 35. Rxe5 {[%emt 0:02:00]} Kb4 {[%emt 0:00:03]} 36. Rb5+ {[%emt 0:01:31]} Kxa4 {[%emt 0:00:07]} 37. Rb8 {[%emt 0:01:04]} Rc6 {[%emt 0:01:28]} 38. e5 {[%emt 0:00:32]} Rc3+ {[%emt 0:00:10]} 39. Kd4 {[%emt 0:00:49]} Rxg3 {[%emt 0:00:19]} 40. e6 {[%emt 0:00:12]} Rg4+ {[%emt 0:01:03]} 41. Kd5 {[%emt 0:00:17]} Rg1 {[%emt 0:01:04]} 42. e7 {[%emt 0:00:12]} Rd1+ {[%emt 0:00:09]} 43. Kc4 {[%emt 0:00:09]} Rc1+ {[%emt 0:00:11]} 44. Kd3 {[%emt 0:00:05]} Rd1+ {[%emt 0:02:04]} 45. Ke2 {[%emt 0:00:16]} Rd7 {[%emt 0:00:31]} 1-0

[Event "8th RTU Open 2018"]
[Site "Riga"]
[Date "2018.08.09"]
[Round "6"]
[White "Seyb, Alexander"]
[Black "Cherepov, Alexej"]
[Result "1-0"]
[ECO "B81"]
[WhiteElo "2383"]
[BlackElo "2245"]
[Annotator "NA"]
[PlyCount "105"]
[EventDate "2018.08.06"]
[EventType "swiss"]
[EventCountry "LAT"]
[SourceTitle "playchess.com"]
[Source "ChessBase"]
[SourceQuality "1"]
[TimeControl "5400+30"]

1. e4 {[%emt 0:00:00]} c5 {[%emt 0:00:03]} 2. Nf3 {[%emt 0:00:00]} e6 {[%emt 0:00:07]} 3. d4 {[%emt 0:00:00]} cxd4 {[%emt 0:00:05]} 4. Nxd4 {[%emt 0:00:00]} Nf6 {[%emt 0:00:20]} 5. Nc3 {[%emt 0:00:00]} d6 {[%emt 0:00:04]} 6. g4 {[%emt 0:00:06]} h6 {[%emt 0:00:32]} 7. h4 {[%emt 0:01:18]} Be7 {[%emt 0:03:06]} 8. Bg2 {[%emt 0:06:56]} d5 {[%emt 0:07:07]} 9. exd5 {[%emt 0:11:58]} Nxd5 {[%emt 0:00:07]} 10. Nxd5 {[%emt 0:00:04]} exd5 {[%emt 0:00:05]} 11. Be3 {[%emt 0:01:44]} Nc6 {[%emt 0:04:34]} 12. Qe2 {[%emt 0:04:46]} Ne5 {[%emt 0:12:58]} 13. g5 {[%emt 0:06:44]} hxg5 {[%emt 0:14:36]} 14. Bxg5 {[%emt 0:05:51]} Nc6 {[%emt 0:22:32]} 15. O-O-O {[%emt 0:02:11]} O-O {[%emt 0:07:01]} 16. Bxe7 {[%emt 0:06:41]} Nxe7 {[%emt 0:02:35]} 17. h5 {[%emt 0:00:17]} Qd6 {[%emt 0:01:31]} 18. h6 {[%emt 0:01:48]} g6 {[%emt 0:01:57]} 19. Rhe1 {[%emt 0:08:08]} Nc6 {[%emt 0:05:20]} 20. Qd2 {[%emt 0:01:43]} a6 {[%emt 0:06:36]} 21. Kb1 {[%emt 0:09:01]} Kh7 {[%emt 0:03:18]} 22. Qc3 {[%emt 0:07:43]} f6 {[%emt 0:02:27]} 23. Nb3 {[%emt 0:00:36]} Ne7 {[%emt 0:01:41]} 24. Qg3 {[%emt 0:04:07]} Nf5 {[%emt 0:02:02]} 25. Qxd6 {[%emt 0:01:04]} Nxd6 {[%emt 0:00:01]} 26. Rxd5 {[%emt 0:00:11]} Nf5 {[%emt 0:00:06]} 27. a4 {[%emt 0:01:45]} Kxh6 {[%emt 0:00:25]} 28. a5 {[%emt 0:00:11]} Rb8 {[%emt 0:00:12]} 29. Rh1+ {[%emt 0:02:58]} Kg7 {[%emt 0:00:37]} 30. Nc5 {[%emt 0:00:57]} b6 {[%emt 0:02:00]} 31. Nd7 {[%emt 0:00:01]} Bxd7 {[%emt 0:00:23]} 32. Rxd7+ {[%emt 0:00:01]} Rf7 {[%emt 0:00:06]} 33. Rh7+ {[%emt 0:00:24]} Kxh7 {[%emt 0:00:07]} 34. Rxf7+ {[%emt 0:00:02]} Kh6 {[%emt 0:00:18]} 35. Rxf6 {[%emt 0:00:04]} bxa5 {[%emt 0:00:08]} 36. Rxa6 {[%emt 0:00:08]} Re8 {[%emt 0:00:07]} 37. c4 {[%emt 0:04:57]} Re2 {[%emt 0:00:34]} 38. c5 {[%emt 0:00:15]} Rxf2 {[%emt 0:01:42]} 39. Be4 {[%emt 0:00:01]} Ne7 {[%emt 0:00:14]} 40. Re6 {[%emt 0:00:28]} Rf7 {[%emt 0:01:11]} 41. c6 {[%emt 0:02:17]} Rg7 {[%emt 0:00:24]} 42. Ka2 {[%emt 0:00:22]} Kg5 {[%emt 0:00:49]} 43. Ka3 {[%emt 0:00:23]} Kf4 {[%emt 0:00:12]} 44. Ka4 {[%emt 0:00:23]} g5 {[%emt 0:00:20]} 45. Kxa5 {[%emt 0:00:07]} Nc8 {[%emt 0:00:54]} 46. b4 {[%emt 0:01:19]} Ra7+ {[%emt 0:00:48]} 47. Kb5 {[%emt 0:00:01]} Ra1 {[%emt 0:00:24]} 48. Bd5 {[%emt 0:03:25]} g4 {[%emt 0:00:30]} 49. Re4+ {[%emt 0:01:54]} Kf5 {[%emt 0:00:26]} 50. Re2 {[%emt 0:00:11]} Kf4 {[%emt 0:00:22]} 51. Rc2 {[%emt 0:00:51]} g3 {[%emt 0:00:39]} 52. Kc5 {[%emt 0:00:30]} Na7 {[%emt 0:00:45]} 53. c7 {[%emt 0:00:28]} 1-0

[Event "8th RTU Open 2018"]
[Site "Riga"]
[Date "2018.08.09"]
[Round "6"]
[White "Jackson, James P"]
[Black "Polatel, Ali"]
[Result "1-0"]
[ECO "B38"]
[WhiteElo "2380"]
[BlackElo "2230"]
[Annotator "NA"]
[PlyCount "101"]
[EventDate "2018.08.06"]
[EventType "swiss"]
[EventCountry "LAT"]
[SourceTitle "playchess.com"]
[Source "ChessBase"]
[SourceQuality "1"]
[TimeControl "5400+30"]

1. e4 {[%emt 0:00:15]} c5 {[%emt 0:00:00]} 2. Nf3 {[%emt 0:00:03]} g6 {[%emt 0:00:00]} 3. d4 {[%emt 0:00:05]} Bg7 {[%emt 0:00:00]} 4. c4 {[%emt 0:05:20]} cxd4 {[%emt 0:00:15]} 5. Nxd4 {[%emt 0:00:08]} Nc6 {[%emt 0:00:10]} 6. Be3 {[%emt 0:00:05]} Nf6 {[%emt 0:00:40]} 7. Nc3 {[%emt 0:00:06]} d6 {[%emt 0:01:30]} 8. Be2 {[%emt 0:00:34]} O-O {[%emt 0:00:16]} 9. O-O {[%emt 0:01:33]} Nxd4 {[%emt 0:03:29]} 10. Bxd4 {[%emt 0:00:15]} Nd7 {[%emt 0:01:11]} 11. Nd5 {[%emt 0:11:09]} Nc5 {[%emt 0:03:51]} 12. Bxg7 {[%emt 0:08:30]} Kxg7 {[%emt 0:00:14]} 13. b4 {[%emt 0:00:29]} Nxe4 {[%emt 0:09:08]} 14. Qd4+ {[%emt 0:00:13]} Nf6 {[%emt 0:00:09]} 15. Nxf6 {[%emt 0:00:06]} e5 {[%emt 0:06:20]} 16. Nh5+ {[%emt 0:00:37]} gxh5 {[%emt 0:00:16]} 17. Qd2 {[%emt 0:08:14]} Bg4 {[%emt 0:02:54]} 18. Rad1 {[%emt 0:06:59]} Rc8 {[%emt 0:08:50]} 19. Bxg4 {[%emt 0:14:05]} hxg4 {[%emt 0:00:21]} 20. Qe2 {[%emt 0:00:05]} Qg5 {[%emt 0:17:02]} 21. Rxd6 {[%emt 0:01:06]} Rfd8 {[%emt 0:00:22]} 22. Rfd1 {[%emt 0:02:55]} Rxd6 {[%emt 0:05:56]} 23. Rxd6 {[%emt 0:00:02]} b6 {[%emt 0:01:35]} 24. Rd1 {[%emt 0:00:38]} Rc7 {[%emt 0:04:25]} 25. Qe4 {[%emt 0:06:32]} Rd7 {[%emt 0:05:22]} 26. Qe1 {[%emt 0:04:38]} Rd4 {[%emt 0:03:32]} 27. Rc1 {[%emt 0:06:04]} Re4 {[%emt 0:06:52]} 28. Qc3 {[%emt 0:03:37]} Qf5 {[%emt 0:03:11]} 29. Kf1 {[%emt 0:01:47]} f6 {[%emt 0:02:06]} 30. c5 {[%emt 0:00:30]} b5 {[%emt 0:07:20]} 31. a3 {[%emt 0:02:47]} Qf4 {[%emt 0:00:51]} 32. g3 {[%emt 0:00:25]} Qh6 {[%emt 0:00:12]} 33. Re1 {[%emt 0:00:37]} Rc4 {[%emt 0:02:01]} 34. Qd3 {[%emt 0:01:00]} Qxh2 {[%emt 0:00:56]} 35. Qd7+ {[%emt 0:00:27]} Kh6 {[%emt 0:01:24]} 36. Qc6 {[%emt 0:00:37]} Kg5 {[%emt 0:00:32]} 37. Qd5 {[%emt 0:01:23]} Rc2 {[%emt 0:03:11]} 38. Rxe5+ {[%emt 0:04:09]} Kh6 {[%emt 0:00:26]} 39. Rf5 {[%emt 0:01:47]} Kg6 {[%emt 0:01:28]} 40. Rf4 {[%emt 0:03:34]} Qh3+ {[%emt 0:00:48]} 41. Ke1 {[%emt 0:00:11]} Qh1+ {[%emt 0:00:43]} 42. Qxh1 {[%emt 0:00:16]} Rc1+ {[%emt 0:00:01]} 43. Ke2 {[%emt 0:01:41]} Rxh1 {[%emt 0:00:06]} 44. Rxg4+ {[%emt 0:00:46]} Kf5 {[%emt 0:00:10]} 45. Rg7 {[%emt 0:00:42]} a5 {[%emt 0:00:43]} 46. Rb7 {[%emt 0:00:06]} Ra1 {[%emt 0:01:05]} 47. Rxb5 {[%emt 0:01:04]} Ra2+ {[%emt 0:00:56]} 48. Kf1 {[%emt 0:00:21]} a4 {[%emt 0:00:18]} 49. c6+ {[%emt 0:00:15]} Ke4 {[%emt 0:00:31]} 50. c7 {[%emt 0:00:14]} Kf3 {[%emt 0:00:11]} 51. Rf5+ {[%emt 0:00:07]} 1-0

[Event "8th RTU Open 2018"]
[Site "Riga"]
[Date "2018.08.09"]
[Round "6"]
[White "Sinz, Bernhard"]
[Black "Pavlov, Sergey"]
[Result "1-0"]
[ECO "B05"]
[WhiteElo "2377"]
[BlackElo "2003"]
[Annotator "NA"]
[PlyCount "63"]
[EventDate "2018.08.06"]
[EventType "swiss"]
[EventCountry "LAT"]
[SourceTitle "playchess.com"]
[Source "ChessBase"]
[SourceQuality "1"]
[TimeControl "5400+30"]

1. e4 {[%emt 0:00:00]} Nf6 {[%emt 0:00:00]} 2. e5 {[%emt 0:00:00]} Nd5 {[%emt 0:00:00]} 3. d4 {[%emt 0:00:00]} d6 {[%emt 0:00:10]} 4. Nf3 {[%emt 0:00:25]} Bg4 {[%emt 0:00:53]} 5. Be2 {[%emt 0:00:38]} c6 {[%emt 0:00:11]} 6. h3 {[%emt 0:08:11]} Bxf3 {[%emt 0:01:12]} 7. Bxf3 {[%emt 0:00:02]} dxe5 {[%emt 0:00:24]} 8. dxe5 {[%emt 0:00:09]} e6 {[%emt 0:00:42]} 9. O-O {[%emt 0:02:05]} Nd7 {[%emt 0:00:38]} 10. Qe2 {[%emt 0:01:25]} Qc7 {[%emt 0:01:44]} 11. Re1 {[%emt 0:02:08]} Bc5 {[%emt 0:16:14]} 12. c4 {[%emt 0:18:31]} Ne7 {[%emt 0:01:49]} 13. Bd2 {[%emt 0:02:59]} Bd4 {[%emt 0:05:25]} 14. Bc3 {[%emt 0:02:40]} Bxc3 {[%emt 0:05:25]} 15. Nxc3 {[%emt 0:00:03]} Ng6 {[%emt 0:01:24]} 16. Bh5 {[%emt 0:02:12]} Ndxe5 {[%emt 0:04:49]} 17. f4 {[%emt 0:02:33]} Nd7 {[%emt 0:01:41]} 18. f5 {[%emt 0:07:26]} Nf4 {[%emt 0:03:57]} 19. Bxf7+ {[%emt 0:05:02]} Kxf7 {[%emt 0:01:23]} 20. fxe6+ {[%emt 0:00:08]} Kg8 {[%emt 0:00:55]} 21. Qf3 {[%emt 0:09:39]} Nc5 {[%emt 0:23:50]} 22. e7 {[%emt 0:14:21]} Re8 {[%emt 0:00:30]} 23. g3 {[%emt 0:10:11]} Nfd3 {[%emt 0:05:23]} 24. Nd5 {[%emt 0:01:08]} Nxe1 {[%emt 0:03:13]} 25. Rxe1 {[%emt 0:00:03]} Qd6 {[%emt 0:05:52]} 26. Rf1 {[%emt 0:01:11]} h6 {[%emt 0:00:15]} 27. Qf7+ {[%emt 0:00:14]} Kh7 {[%emt 0:00:05]} 28. Nf6+ {[%emt 0:00:09]} Qxf6 {[%emt 0:00:12]} 29. Rxf6 {[%emt 0:00:08]} Rhg8 {[%emt 0:00:10]} 30. Qg6+ {[%emt 0:03:41]} Kh8 {[%emt 0:00:05]} 31. Qh5 {[%emt 0:00:40]} Kh7 {[%emt 0:01:03]} 32. Rf8 {[%emt 0:01:43]} 1-0